bitfinex-derivatives/quotes_ETHF0:USTF0_20260115
["timestamp","ask_amount","ask_price","bid_price","bid_amount"]
[1768440441476,0.86077173,3332.1,3330.6,0.15013]
[1768440441776,0.86077173,3332.0,3330.6,0.15013]
[1768440441967,0.86077173,3331.9,3330.6,0.15013]
[1768440442171,1.86402182,3332.3,3330.6,0.15013]
[1768440442373,0.86100125,3332.2,3330.6,0.15013]
[1768440442579,0.86100125,3332.1,3330.6,0.15013]
[1768440442876,0.86100125,3332.0,3330.6,0.15013]
[1768440443067,0.86100125,3331.9,3330.6,0.15013]
[1768440443268,0.86148545,3331.8,3331.1,0.96159133]
[1768440443477,1.86402182,3332.3,3331.1,0.96159133]
[1768440443667,0.86148533,3332.2,3331.1,0.96159133]
[1768440443978,0.86148533,3332.1,3331.1,0.96159133]
[1768440444179,0.86148533,3332.0,3331.1,0.96159133]
[1768440444382,0.86148533,3331.9,3331.1,0.96159133]
[1768440444682,1.86402182,3332.3,3331.1,0.96159133]
[1768440444978,0.86189547,3332.2,3331.1,0.96159133]
[1768440445178,0.86189547,3332.1,3331.1,0.96159133]
[1768440445371,0.86189547,3332.0,3331.1,0.96159133]
[1768440445573,0.86189547,3332.0,3330.5,1.171]
[1768440445574,0.86189547,3331.9,3330.9,0.96159133]
[1768440445782,1.8234868,3331.8,3330.3,1.77283571]
[1768440445970,0.86189547,3331.7,3330.3,1.77283571]
[1768440446170,0.86189547,3331.7,3330.5,0.96159133]
[1768440446370,0.86189547,3331.6,3330.5,0.96159133]
[1768440446575,1.73011951,3331.9,3330.7,0.96159133]
[1768440446776,0.86212535,3331.8,3330.7,0.96159133]
[1768440446976,0.86212535,3331.7,3330.9,0.96159133]
[1768440447176,0.86212535,3331.6,3330.3,1.77283571]
[1768440447376,1.73011951,3331.9,3330.9,0.96159133]
[1768440447577,0.86226554,3331.8,3330.9,0.96159133]
[1768440447780,0.86226554,3331.7,3330.9,0.96159133]
[1768440448084,0.86226554,3331.6,3331.2,0.96159133]
[1768440448276,1.73011951,3332.4,3331.2,0.96159133]
[1768440448583,2.90384316,3332.3,3331.2,0.96159133]
[1768440448773,0.86219856,3332.2,3331.2,0.96159133]
[1768440451480,0.86219856,3332.2,3330.6,1.68186923]
[1768440451676,0.86219856,3332.2,3331.3,0.96159133]
[1768440452077,0.86219856,3332.1,3331.3,0.96159133]
[1768440452276,0.86219856,3332.0,3331.3,0.96159133]
[1768440452476,0.86219856,3331.9,3331.3,0.96159133]
[1768440452676,0.86219856,3331.8,3331.3,0.96159133]
[1768440452878,0.15005,3332.5,3331.3,0.96159133]
[1768440453080,0.86201835,3332.4,3331.3,0.96159133]
[1768440453286,0.86201835,3332.3,3331.3,0.96159133]
[1768440453476,0.86201835,3332.2,3331.3,0.96159133]
[1768440453676,0.86201835,3332.1,3331.3,0.96159133]
[1768440453878,0.86201835,3332.0,3331.3,0.96159133]
[1768440454085,0.86201835,3331.9,3331.3,0.96159133]
[1768440454286,0.86201835,3331.8,3331.3,0.96159133]
[1768440454475,0.15005,3332.4,3330.9,1.68186923]
[1768440454780,0.86172088,3332.3,3331.3,0.96159133]
[1768440455079,0.86172088,3332.2,3331.3,0.96159133]
[1768440455284,0.86172088,3332.1,3331.3,0.96159133]
[1768440455582,0.86172088,3332.0,3331.3,0.96159133]
[1768440455783,0.86172088,3331.9,3331.3,0.96159133]
[1768440455986,0.86172088,3331.8,3331.3,0.96159133]
[1768440456184,0.15005,3332.4,3331.3,0.96159133]
[1768440456373,0.86171945,3332.3,3331.3,0.96159133]
[1768440456581,0.86171945,3332.2,3331.3,0.96159133]
[1768440456781,0.86171945,3332.1,3331.3,0.96159133]
[1768440456985,0.86171945,3332.0,3331.3,0.96159133]
[1768440457284,0.15005,3332.4,3331.3,0.96159133]
[1768440457285,0.86171945,3331.9,3331.3,0.96159133]
[1768440457481,0.86171945,3331.8,3331.3,0.96159133]
[1768440457683,0.15005,3332.4,3331.3,0.96159133]
[1768440457887,0.86173487,3332.3,3331.3,0.96159133]
[1768440458187,0.86176048,3332.2,3331.3,0.96159133]
[1768440458382,0.86176048,3332.1,3331.3,0.96159133]
[1768440458685,0.86176048,3332.0,3331.3,0.96159133]
[1768440458888,0.86176048,3331.9,3331.3,0.96159133]
[1768440459089,0.15005,3332.4,3331.3,0.96159133]
[1768440459389,0.86071174,3332.3,3331.3,0.96159133]
[1768440459584,0.86071174,3332.2,3331.3,0.96159133]
[1768440459784,0.86071174,3332.1,3331.3,0.96159133]
[1768440459986,0.86071174,3332.0,3331.3,0.96159133]
[1768440460292,0.86071174,3331.9,3331.3,0.96159133]
[1768440460481,0.15005,3332.4,3331.3,0.96159133]
[1768440460780,0.86084598,3332.3,3331.3,0.96159133]
[1768440461078,0.86084598,3332.2,3331.3,0.96159133]
[1768440461279,0.86084598,3332.1,3331.3,0.96159133]
[1768440461478,0.86084598,3332.0,3331.3,0.96159133]
[1768440461688,0.86084598,3331.9,3331.3,0.96159133]
[1768440461889,0.15005,3332.4,3331.3,0.96159133]
[1768440462078,0.86086312,3332.3,3331.3,0.96159133]
[1768440462279,0.86086312,3332.2,3331.3,0.96159133]
[1768440462476,0.86086312,3332.1,3331.3,0.96159133]
[1768440462776,0.86086312,3332.0,3331.3,0.96159133]
[1768440463078,0.86086312,3331.9,3331.3,0.96159133]
[1768440463278,0.15005,3332.4,3331.3,0.96159133]
[1768440463477,0.86090282,3332.3,3331.3,0.96159133]
[1768440463793,0.86090282,3332.2,3331.3,0.96159133]
[1768440463983,0.86090282,3332.1,3331.3,0.96159133]
[1768440464185,0.86090282,3332.0,3331.3,0.96159133]
[1768440464485,0.86090282,3331.9,3331.3,0.96159133]
[1768440464686,0.86090282,3331.8,3331.3,0.96159133]
[1768440465189,0.15005,3332.4,3331.3,0.96159133]
[1768440466590,0.15005,3332.4,3331.6,0.96159133]
[1768440466883,0.15003,3333.0,3332.1,0.96159133]
[1768440467090,0.15003,3333.0,3332.1,0.96514192]
[1768440468478,0.15003,3333.0,3332.4,0.96159133]
[1768440470082,0.00381121,3333.3,3332.4,0.96159133]
[1768440473381,0.00381121,3333.3,3332.2,0.96159133]
[1768440476988,0.85571299,3333.2,3332.2,0.96159133]
[1768440477282,0.85571299,3333.1,3332.2,0.96159133]
[1768440477491,0.85571299,3333.0,3332.2,0.96159133]
[1768440477681,0.00381121,3333.3,3332.2,0.96159133]
[1768440477987,0.85569343,3333.2,3332.2,0.96159133]
[1768440478190,0.85569343,3333.1,3332.2,0.96159133]
[1768440478489,0.85569343,3333.0,3332.2,0.96159133]
[1768440478690,0.00381121,3333.3,3332.2,0.96159133]
[1768440478990,0.85569832,3333.2,3332.1,0.00355059]
[1768440479192,0.85569832,3333.1,3332.1,0.00355059]
[1768440479489,0.85569832,3333.0,3332.1,0.00355059]
[1768440479690,0.00381121,3333.3,3332.1,0.00355059]
[1768440479882,0.85573006,3333.2,3332.1,0.00355059]
[1768440480081,0.85573006,3333.1,3332.1,0.00355059]
[1768440480283,0.85573006,3333.0,3332.1,0.00355059]
[1768440480482,0.00381121,3333.3,3332.1,0.00355059]
[1768440480690,0.8557987,3333.2,3332.1,0.00355059]
[1768440480890,0.8557987,3333.1,3332.1,0.00355059]
[1768440481092,0.8557987,3333.0,3332.1,0.00355059]
[1768440481393,0.00381121,3333.3,3332.1,0.00355059]
[1768440481694,0.85587442,3333.2,3332.2,0.96159133]
[1768440481884,0.85587442,3333.1,3332.2,0.96159133]
[1768440482184,0.85587442,3333.0,3332.2,0.96159133]
[1768440482383,0.00381121,3333.3,3332.2,0.96159133]
[1768440482692,0.85589339,3333.2,3332.1,0.96514192]
[1768440482890,0.85589339,3333.1,3332.1,0.96514192]
[1768440483091,0.85589339,3333.0,3332.1,0.96514192]
[1768440483396,0.85589339,3332.9,3332.1,0.96514192]
[1768440483694,0.00381121,3333.3,3332.1,0.96514192]
[1768440483991,0.85593078,3333.2,3332.1,0.96514192]
[1768440484178,0.85593078,3333.1,3332.1,0.96514192]
[1768440484494,0.85593078,3333.0,3332.1,0.96514192]
[1768440484794,0.85593078,3332.9,3332.1,0.96514192]
[1768440484990,0.00381121,3333.3,3332.3,0.96159133]
[1768440485292,0.85595662,3333.2,3332.3,0.96159133]
[1768440485490,0.00381121,3333.3,3332.3,0.96159133]
[1768440485491,0.85595662,3333.1,3332.3,0.96159133]
[1768440485793,0.00381121,3333.3,3332.3,0.96159133]
[1768440486091,0.85597993,3333.2,3332.3,0.96159133]
[1768440486288,0.85597993,3333.2,3332.1,2.24648136]
[1768440486289,0.85597993,3333.1,3332.1,3.20807269]
[1768440486492,0.85597993,3333.0,3332.1,3.20807269]
[1768440486793,0.00381121,3333.3,3332.1,3.20807269]
[1768440486994,0.85605276,3333.2,3332.1,3.20807269]
[1768440487293,0.85605276,3333.1,3332.1,3.20807269]
[1768440487489,0.85605276,3333.0,3332.1,3.20807269]
[1768440487691,0.00381121,3333.3,3332.1,3.20807269]
[1768440487888,0.85614892,3333.2,3332.1,3.20807269]
[1768440488090,0.85614892,3333.1,3332.1,3.20807269]
[1768440488293,0.85614892,3333.0,3332.1,3.20807269]
[1768440488588,0.85780501,3332.9,3332.1,3.20807269]
[1768440488893,0.00381121,3333.3,3332.1,3.20807269]
[1768440489087,0.85780501,3333.2,3332.1,3.20807269]
[1768440489395,0.00381121,3333.3,3332.1,3.20807269]
[1768440489396,0.85780501,3333.1,3332.1,3.20807269]
[1768440489593,0.85780501,3333.0,3332.1,3.20807269]
[1768440489894,0.85780501,3332.9,3332.1,3.20807269]
[1768440490082,0.00381121,3333.3,3332.1,3.20807269]
[1768440490297,0.85794567,3333.2,3332.1,3.20807269]
[1768440490490,0.85794567,3333.1,3332.1,2.24648136]
[1768440490688,0.00381121,3333.3,3332.7,0.96159133]
[1768440490888,0.85799877,3333.2,3332.7,0.96159133]
[1768440491187,0.85799877,3333.1,3332.5,0.96159133]
[1768440491387,0.00381121,3333.3,3332.5,0.96159133]
[1768440491591,0.85812171,3333.2,3332.5,0.96159133]
[1768440491781,0.85812171,3333.1,3332.5,0.96159133]
[1768440491986,0.00381121,3333.3,3332.5,0.96159133]
[1768440492190,0.85810105,3333.2,3332.7,3.2045221]
[1768440492388,0.85810105,3333.1,3332.7,3.2045221]
[1768440492594,0.00381121,3333.3,3332.7,3.2045221]
[1768440492796,0.85825844,3333.2,3332.7,3.2045221]
[1768440492994,0.85825844,3333.1,3332.7,3.2045221]
[1768440493295,0.00381121,3333.3,3332.7,3.2045221]
[1768440493485,0.85846378,3333.2,3332.7,3.2045221]
[1768440493687,0.14999,3333.8,3333.0,0.96159133]
[1768440493887,1.17485114,3334.0,3333.0,0.96159133]
[1768440494898,1.17719397,3334.0,3333.0,0.96159133]
[1768440497801,1.17719397,3334.0,3333.0,3.2045221]
[1768440498805,1.17719397,3334.0,3333.2,0.96159133]
[1768440501203,1.17719397,3334.0,3333.3,0.96159133]
[1768440501406,1.17719397,3334.0,3333.0,2.24293077]
[1768440502107,2.85527673,3334.7,3333.3,2.66930493]
[1768440502307,2.85527673,3334.7,3333.7,0.00450409]
[1768440503007,2.85836702,3334.7,3333.7,0.00450409]
[1768440503199,5.38675784,3334.7,3333.7,0.00450409]
[1768440504709,5.53670784,3334.7,3333.7,0.00450409]
[1768440505702,0.85296347,3334.6,3333.7,0.00450409]
[1768440505900,0.85296347,3334.5,3333.7,0.00450409]
[1768440506113,0.85296347,3334.4,3333.7,0.00450409]
[1768440506406,0.85296347,3334.3,3333.7,0.00450409]
[1768440506609,0.85296347,3334.2,3333.7,0.00450409]
[1768440506811,0.85296347,3334.1,3333.7,0.00450409]
[1768440506996,0.85296347,3334.0,3333.7,0.00450409]
[1768440507196,0.85296347,3333.9,3333.7,0.00450409]
[1768440507510,3.00831702,3334.7,3333.7,0.00450409]
[1768440507708,0.85273622,3334.6,3333.7,0.00450409]
[1768440507921,0.85273622,3334.5,3333.7,0.00450409]
[1768440508119,0.85273622,3334.4,3333.7,0.00450409]
[1768440508305,0.85273622,3334.3,3333.7,0.00450409]
[1768440508504,0.85273622,3334.2,3333.7,0.00450409]
[1768440508802,0.85273622,3334.1,3333.7,0.00450409]
[1768440509008,3.00831702,3334.7,3333.7,0.00450409]
[1768440509009,0.85273622,3334.0,3333.7,0.00450409]
[1768440509209,3.00831702,3334.7,3333.7,0.00450409]
[1768440509514,0.85263992,3334.6,3333.7,0.00450409]
[1768440509717,0.85263992,3334.5,3333.7,0.00450409]
[1768440509912,0.85263992,3334.4,3333.7,0.00450409]
[1768440510114,0.85263992,3334.3,3333.7,0.00450409]
[1768440510316,2.85836702,3334.7,3333.7,2.51870172]
[1768440510515,0.00309029,3334.7,3333.7,2.51870172]
[1768440513318,0.00309029,3334.7,3333.7,0.00450409]
[1768440522321,0.85119895,3334.6,3333.7,0.00450409]
[1768440522516,0.85119895,3334.5,3333.7,0.00450409]
[1768440522723,0.00309029,3334.7,3333.7,0.00450409]
[1768440523020,0.85119738,3334.6,3333.7,0.00450409]
[1768440523322,0.85119738,3334.5,3333.7,0.00450409]
[1768440523512,0.85119738,3334.4,3333.7,0.00450409]
[1768440523711,0.00309029,3334.7,3333.7,0.00450409]
[1768440523912,0.85158322,3334.6,3333.7,0.00450409]
[1768440524218,0.85158322,3334.5,3333.7,0.00450409]
[1768440524416,0.85158322,3334.4,3333.7,0.00450409]
[1768440524624,0.00309029,3334.7,3333.7,0.00450409]
[1768440524822,0.85171516,3334.6,3333.7,0.00450409]
[1768440525022,0.85171516,3334.5,3333.7,0.00450409]
[1768440525225,0.85171516,3334.4,3333.7,0.00450409]
[1768440525424,0.85171516,3334.3,3333.7,0.00450409]
[1768440525624,0.00309029,3334.7,3333.7,0.00450409]
[1768440525826,0.85185168,3334.6,3333.7,0.00450409]
[1768440526123,0.85185168,3334.5,3333.7,0.00450409]
[1768440526322,0.85185168,3334.4,3333.7,0.00450409]
[1768440526624,0.85185168,3334.3,3333.7,0.00450409]
[1768440526827,0.00309029,3334.7,3333.7,0.00450409]
[1768440527026,0.85200418,3334.6,3333.7,0.00450409]
[1768440527225,0.85200418,3334.5,3333.7,0.00450409]
[1768440527425,0.85200418,3334.4,3333.7,0.00450409]
[1768440527627,0.85200418,3334.3,3333.7,0.00450409]
[1768440527833,0.00309029,3334.7,3333.7,0.00450409]
[1768440528031,0.85116575,3334.6,3333.7,0.00450409]
[1768440528230,0.85116575,3334.5,3333.7,0.00450409]
[1768440528431,0.85116575,3334.4,3333.7,0.00450409]
[1768440528634,0.85116575,3334.3,3333.7,0.00450409]
[1768440528833,0.00309029,3334.7,3333.7,0.00450409]
[1768440529028,0.85139911,3334.6,3333.7,0.00450409]
[1768440529222,0.85139911,3334.5,3333.7,0.00450409]
[1768440529423,0.85139911,3334.4,3333.7,0.00450409]
[1768440529624,0.85139911,3334.3,3333.7,0.00450409]
[1768440529824,0.00309029,3334.7,3333.7,0.00450409]
[1768440530023,0.85151348,3334.6,3333.7,0.00450409]
[1768440530233,0.85151348,3334.5,3333.7,0.00450409]
[1768440530433,0.85151348,3334.4,3333.7,0.00450409]
[1768440530733,0.85151348,3334.3,3333.7,0.00450409]
[1768440530932,0.00309029,3334.7,3333.7,0.00450409]
[1768440531133,0.85162784,3334.6,3333.7,0.00450409]
[1768440531432,0.85162784,3334.5,3333.7,0.00450409]
[1768440531624,0.85162784,3334.4,3333.7,0.00450409]
[1768440531820,0.85162784,3334.3,3333.7,0.00450409]
[1768440532024,0.00309029,3334.7,3333.7,0.00450409]
[1768440532330,0.85177561,3334.6,3333.7,0.00450409]
[1768440532531,0.85177561,3334.5,3333.7,0.00450409]
[1768440532833,0.85177561,3334.4,3333.7,0.00450409]
[1768440533035,0.85177561,3334.3,3333.7,0.00450409]
[1768440533335,0.85177561,3334.2,3333.7,0.00450409]
[1768440533531,0.00309029,3334.7,3333.7,0.00450409]
[1768440533732,0.85206783,3334.6,3333.7,0.00450409]
[1768440533934,0.85206783,3334.5,3333.7,0.00450409]
[1768440534133,0.85206783,3334.4,3333.7,0.00450409]
[1768440534335,0.85206783,3334.3,3333.7,0.00450409]
[1768440534540,0.85206783,3334.2,3333.7,0.00450409]
[1768440534837,0.00309029,3334.7,3333.7,0.00450409]
[1768440535140,0.85214194,3334.6,3333.7,0.00450409]
[1768440535340,0.85214194,3334.5,3333.7,0.00450409]
[1768440535538,0.85214194,3334.4,3333.7,0.00450409]
[1768440535839,0.85214194,3334.3,3333.7,0.00450409]
[1768440536040,0.85214194,3334.2,3333.7,0.00450409]
[1768440536239,0.00309029,3334.7,3333.7,0.00450409]
[1768440536439,0.85233427,3334.6,3333.7,0.00450409]
[1768440536641,0.85233427,3334.5,3333.7,0.00450409]
[1768440536831,0.85233427,3334.4,3333.7,0.00450409]
[1768440537031,0.00309029,3334.7,3333.7,0.00450409]
[1768440537032,0.85233427,3334.3,3333.7,0.00450409]
[1768440537239,0.85233427,3334.2,3333.7,0.00450409]
[1768440537445,0.15304029,3334.7,3333.7,0.00450409]
[1768440537738,0.8527411,3334.6,3333.7,0.00450409]
[1768440537938,0.8527411,3334.5,3333.7,0.00450409]
[1768440538136,0.8527411,3334.4,3333.7,0.00450409]
[1768440538334,0.8527411,3334.3,3333.7,0.00450409]
[1768440538635,0.8527411,3334.2,3333.7,0.00450409]
[1768440538838,0.15304029,3334.7,3333.7,0.00450409]
[1768440539039,0.85287656,3334.6,3333.7,0.00450409]
[1768440539239,0.85287656,3334.5,3333.7,0.00450409]
[1768440539442,0.85287656,3334.4,3333.7,0.00450409]
[1768440539635,0.85287656,3334.3,3333.7,0.00450409]
[1768440539836,0.85287656,3334.2,3333.7,0.00450409]
[1768440540036,0.15304029,3334.7,3333.7,0.00450409]
[1768440540233,0.85326383,3334.6,3333.7,0.00450409]
[1768440540436,0.85326383,3334.5,3333.7,0.00450409]
[1768440540645,0.85326383,3334.4,3333.7,0.00450409]
[1768440540838,0.85326383,3334.3,3333.7,0.00450409]
[1768440541038,0.85326383,3334.2,3333.7,0.00450409]
[1768440541239,0.15304029,3334.7,3333.7,0.00450409]
[1768440541444,0.85326265,3334.6,3333.7,0.00450409]
[1768440541636,0.85326265,3334.5,3333.7,0.00450409]
[1768440541838,0.85326265,3334.4,3333.7,0.00450409]
[1768440542043,0.85326265,3334.3,3333.7,0.00450409]
[1768440542343,0.85326265,3334.2,3333.7,0.00450409]
[1768440542544,0.15304029,3334.7,3333.7,0.00450409]
[1768440542746,0.85325407,3334.6,3333.7,0.00450409]
[1768440542937,0.85325407,3334.5,3333.7,0.00450409]
[1768440543139,0.85325407,3334.4,3333.7,0.00450409]
[1768440543344,0.85325407,3334.3,3333.7,0.00450409]
[1768440543543,0.85325407,3334.2,3333.7,0.00450409]
[1768440543743,0.15304029,3334.7,3333.7,0.00450409]
[1768440543947,0.85326256,3334.6,3333.7,0.00450409]
[1768440544241,0.85326256,3334.5,3333.7,0.00450409]
[1768440544441,0.85326256,3334.4,3333.7,0.00450409]
[1768440544638,0.85326256,3334.3,3333.7,0.00450409]
[1768440544838,0.85326256,3334.2,3333.7,0.00450409]
[1768440545045,0.15304029,3334.7,3333.7,0.00450409]
[1768440545230,0.85326167,3334.6,3333.7,0.00450409]
[1768440545434,0.85326167,3334.5,3333.7,0.00450409]
[1768440545634,0.85326167,3334.4,3333.7,0.00450409]
[1768440545842,0.85326167,3334.3,3333.7,0.00450409]
[1768440546031,0.85326167,3334.2,3333.7,0.00450409]
[1768440546231,0.15304029,3334.7,3333.7,0.00450409]
[1768440546451,0.85326754,3334.6,3333.7,0.00450409]
[1768440546748,0.85326754,3334.5,3333.7,0.00450409]
[1768440547048,0.85326754,3334.4,3333.7,0.00450409]
[1768440547346,0.85326754,3334.3,3333.7,0.00450409]
[1768440547541,0.85326754,3334.2,3333.7,0.00450409]
[1768440547741,0.15304029,3334.7,3333.7,0.00450409]
[1768440547936,0.85327188,3334.6,3333.7,0.00450409]
[1768440548135,0.85327188,3334.5,3333.7,0.00450409]
[1768440548351,0.85327188,3334.4,3333.7,0.00450409]
[1768440548645,0.85327188,3334.3,3333.7,0.00450409]
[1768440548847,0.85327188,3334.2,3333.7,0.00450409]
[1768440549054,0.85327188,3334.1,3333.7,0.00450409]
[1768440549239,0.15304029,3334.7,3333.7,0.00450409]
[1768440549436,0.85695857,3334.6,3333.7,0.00450409]
[1768440549634,0.85695857,3334.5,3333.7,0.00450409]
[1768440549838,0.85695857,3334.4,3333.7,0.00450409]
[1768440550137,0.85695857,3334.3,3333.7,0.00450409]
[1768440550437,0.85695857,3334.2,3333.7,0.00450409]
[1768440550633,0.85695857,3334.1,3333.7,0.00450409]
[1768440550834,0.15304029,3334.7,3333.7,0.00450409]
[1768440551039,0.85695755,3334.6,3333.7,0.00450409]
[1768440551237,0.85695755,3334.5,3333.7,0.00450409]
[1768440551440,0.85695755,3334.4,3333.7,0.00450409]
[1768440551749,0.85695755,3334.3,3333.7,0.00450409]
[1768440551952,0.85695755,3334.2,3333.7,0.00450409]
[1768440552152,0.15304029,3334.7,3333.7,0.00450409]
[1768440552343,0.85699454,3334.6,3333.7,0.00450409]
[1768440552543,0.85699454,3334.5,3333.7,0.00450409]
[1768440552856,0.85699454,3334.4,3333.7,0.00450409]
[1768440553041,0.15304029,3334.7,3333.7,0.00450409]
[1768440553548,0.00309029,3334.7,3333.7,0.00450409]
[1768440553749,0.00309029,3334.7,3332.3,2.55320473]
[1768440553750,3.79835983,3333.8,3332.3,2.55320473]
[1768440553942,3.79835983,3333.8,3332.1,1.17255059]
[1768440554145,2.83803221,3333.8,3332.1,4.17885216]
[1768440554345,2.98802221,3333.8,3332.1,4.17885216]
[1768440554746,0.00450409,3333.3,3332.6,0.00450409]
[1768440556351,2.8425363,3333.3,3332.1,0.00355059]
[1768440557457,2.8425363,3333.3,3332.4,0.00450409]
[1768440561962,4.17749048,3333.2,3332.1,0.00355059]
[1768440562257,3.21645127,3333.1,3332.1,0.00355059]
[1768440563045,3.21645127,3333.1,3332.3,0.00450409]
[1768440563761,0.96103921,3333.2,3331.4,3.001]
[1768440563762,3.21645127,3332.8,3331.4,0.96103921]
[1768440564356,4.17749048,3332.6,3330.9,4.11732366]
[1768440564555,4.17749048,3332.6,3331.2,0.96103921]
[1768440564763,4.17749048,3332.6,3331.4,0.00450409]
[1768440565051,0.15009,3331.6,3329.8,3.77745631]
[1768440565263,0.96103921,3331.0,3329.7,2.94732366]
[1768440565562,0.96103921,3331.3,3329.7,2.94732366]
[1768440565863,0.96103921,3331.3,3329.8,0.96103921]
[1768440566056,0.00450409,3330.9,3329.8,0.96387211]
[1768440566453,0.00450409,3330.9,3329.8,0.0028329]
[1768440567253,0.00450409,3330.9,3329.8,0.96387211]
[1768440567955,0.00450409,3330.9,3330.0,0.00450409]
[1768440570961,0.00319186,3331.3,3330.7,0.96103921]
[1768440572163,0.00769595,3331.3,3330.5,0.96103921]
[1768440575769,0.00769595,3331.3,3330.0,2.95182775]
[1768440576065,0.96103921,3331.0,3330.0,0.00450409]
[1768440576364,4.18518643,3331.3,3330.0,0.9655433]
[1768440576864,3.22414722,3331.3,3330.0,0.9655433]
[1768440578165,44.16652127,3332.1,3330.7,0.96103921]
[1768440578464,0.84041043,3332.0,3330.7,0.96103921]
[1768440578766,0.15007,3332.0,3330.7,0.96103921]
[1768440579466,0.15380424,3332.0,3330.7,0.96103921]
[1768440580068,0.00450409,3331.7,3330.7,0.96103921]
[1768440581166,0.00450409,3331.7,3330.4,0.96103921]
[1768440581370,3.22095536,3331.7,3330.2,2.94732366]
[1768440581569,0.96103921,3331.5,3330.1,0.96103921]
[1768440582567,0.96103921,3331.2,3330.0,0.00450409]
[1768440582974,0.1501,3331.4,3330.0,0.00450409]
[1768440586373,0.1501,3331.4,3330.2,0.96103921]
[1768440588175,0.1501,3331.4,3330.5,0.96103921]
[1768440590183,0.00450409,3331.7,3330.5,0.96103921]
[1768440590371,0.84801017,3331.6,3330.5,0.96103921]
[1768440590572,0.84801017,3331.5,3330.5,0.96103921]
[1768440590771,0.84801017,3331.4,3330.5,0.96103921]
[1768440590974,0.84801017,3331.3,3330.5,0.96103921]
[1768440591277,0.00450409,3331.7,3330.5,0.96103921]
[1768440591473,0.84866283,3331.6,3330.5,0.96103921]
[1768440591675,0.84866283,3331.5,3330.5,0.96103921]
[1768440591874,0.00450409,3331.7,3330.5,0.96103921]
[1768440591875,0.84866283,3331.4,3330.5,0.96103921]
[1768440592080,0.84866283,3331.3,3330.5,0.96103921]
[1768440592275,0.84940216,3331.2,3330.5,0.96103921]
[1768440592472,0.00450409,3331.7,3330.5,0.96103921]
[1768440592671,0.84940397,3331.6,3330.5,0.96103921]
[1768440592872,0.84940397,3331.5,3330.5,0.96103921]
[1768440593167,0.84940397,3331.4,3330.4,0.96103921]
[1768440593376,0.84940397,3331.3,3330.4,0.96103921]
[1768440593579,0.84940397,3331.2,3330.4,0.96103921]
[1768440593778,0.84940397,3331.1,3330.4,0.96103921]
[1768440593976,0.00450409,3331.7,3330.4,0.96103921]
[1768440594176,0.85039874,3331.6,3330.4,0.96103921]
[1768440594380,0.85039874,3331.5,3330.4,0.96103921]
[1768440594580,0.85039874,3331.4,3330.4,0.96103921]
[1768440594882,0.85039874,3331.3,3330.4,0.96103921]
[1768440595078,0.85039874,3331.2,3330.4,0.96103921]
[1768440595278,0.85039874,3331.1,3330.4,0.96103921]
[1768440595573,0.85039874,3331.0,3330.4,0.96103921]
[1768440595776,0.85039874,3330.9,3330.4,0.96103921]
[1768440595975,0.00450409,3331.7,3330.4,0.96103921]
[1768440596177,0.85160597,3331.6,3330.4,0.96103921]
[1768440596369,0.85160597,3331.5,3330.4,0.96103921]
[1768440596573,0.85160597,3331.4,3331.0,0.96103921]
[1768440596774,0.00373424,3332.0,3331.3,0.96103921]
[1768440597077,0.00373424,3332.0,3331.1,0.96103921]
[1768440597376,0.00373424,3332.0,3330.9,0.96103921]
[1768440597577,0.96103921,3331.9,3330.6,0.96103921]
[1768440597777,0.00450409,3331.6,3330.6,0.96103921]
[1768440598872,3.24666705,3331.4,3328.8,1.82800055]
[1768440599075,6.31071164,3331.5,3327.3,0.96103921]
[1768440599076,0.96103921,3328.9,3327.3,0.96103921]
[1768440599279,0.15021,3329.0,3326.7,0.23674148]
[1768440599486,0.15021,3329.0,3326.9,10.80951965]
[1768440599679,0.15021,3329.0,3326.3,1.17]
[1768440599881,3.24666705,3328.8,3326.6,10.80951965]
[1768440600087,0.00450409,3328.0,3327.3,0.00450409]
[1768440600282,0.00784745,3328.0,3327.3,0.00669875]
[1768440600481,0.00784745,3328.0,3326.3,1.17]
[1768440600683,0.00784745,3328.0,3326.9,10.80951965]
[1768440601082,0.00784745,3328.0,3326.5,3.30028891]
[1768440601783,0.00784745,3328.0,3326.5,3.30391078]
[1768440602082,0.00784745,3328.0,3326.5,12.28783064]
[1768440602286,3.39685705,3329.4,3327.0,1.47468912]
[1768440602678,40.8,3329.3,3327.2,10.80951965]
[1768440602984,3.24666705,3329.2,3326.9,0.00450409]
[1768440603190,3.24914132,3329.2,3326.9,1.17550409]
[1768440603377,0.00450409,3328.4,3326.9,1.17550409]
[1768440603784,0.00450409,3328.4,3327.0,10.80951965]
[1768440604089,0.00450409,3328.4,3327.1,3.30028891]
[1768440604285,0.00247427,3329.2,3327.4,3.30028891]
[1768440605684,0.00450409,3328.6,3327.4,3.30028891]
[1768440605988,0.00450409,3328.6,3326.9,3.304793]
[1768440606174,0.00450409,3328.6,3327.1,10.80951965]
[1768440608083,0.00450409,3328.6,3327.1,14.10980856]
[1768440608581,0.00450409,3328.6,3327.2,3.30028891]
[1768440610780,0.00247427,3329.2,3327.3,3.30028891]
[1768440611386,0.00247427,3329.2,3328.0,3.30028891]
[1768440611789,0.00450409,3328.9,3328.0,3.30028891]
[1768440612880,0.00247427,3329.2,3328.0,3.30028891]
[1768440615188,0.15015,3330.2,3328.0,3.30028891]
[1768440615396,3.24666705,3330.9,3328.4,3.30028891]
[1768440615589,0.90066438,3330.8,3328.9,3.30028891]
[1768440615795,0.90066438,3330.7,3328.9,3.30028891]
[1768440616094,0.90066438,3330.6,3328.9,3.30387116]
[1768440616294,0.90066438,3330.5,3328.9,3.30387116]
[1768440616497,0.00347347,3330.7,3329.0,3.30028891]
[1768440616692,0.90082307,3330.6,3329.1,1.181]
[1768440616894,0.90082307,3330.5,3329.1,1.181]
[1768440617190,0.00347347,3330.7,3329.1,4.48128891]
[1768440617396,0.90099388,3330.6,3329.1,4.48128891]
[1768440617596,0.00347347,3330.7,3329.1,4.48128891]
[1768440617597,0.90099388,3330.5,3329.1,4.48128891]
[1768440617798,0.00347347,3330.7,3329.1,4.48128891]
[1768440617998,0.90099381,3330.6,3329.1,4.48128891]
[1768440618187,0.90099381,3330.5,3329.1,4.48128891]
[1768440618393,0.00347347,3330.7,3329.1,4.48128891]
[1768440618593,0.90112024,3330.6,3329.1,4.48128891]
[1768440618793,0.90112024,3330.5,3329.1,4.48128891]
[1768440619096,0.90129431,3330.4,3329.1,4.48128891]
[1768440619401,0.90129431,3330.4,3328.9,0.00358225]
[1768440619402,0.15015,3330.2,3328.9,0.00358225]
[1768440619695,1.05146275,3330.1,3328.9,0.00358225]
[1768440619892,0.90130275,3330.0,3328.9,0.00358225]
[1768440620092,0.90130275,3329.9,3328.9,0.00358225]
[1768440620292,0.90130275,3329.8,3328.9,0.00358225]
[1768440620593,0.15016,3330.1,3328.9,0.00358225]
[1768440620791,0.90144409,3330.0,3328.9,0.00358225]
[1768440620993,0.90144409,3329.9,3328.9,0.00358225]
[1768440621295,0.90144409,3329.8,3328.9,0.00358225]
[1768440621495,2.15974144,3330.7,3328.9,13.41305816]
[1768440621698,0.90167832,3330.6,3328.9,2.60353851]
[1768440621900,0.90167832,3330.5,3328.9,2.60353851]